Cogmind - Beta 9.6 *** ADVENTURER MODE // 2020.04.23 @ 13:42:22 Player: BinarySpace Result: Destroyed by Y-64 Sentinel with Wave Gun Performance ------------- Evolutions (6) 3000 Regions Visited (10) 2000 Robots Destroyed (125) 625 Value Destroyed (4000) 4000 Prototype IDs (11) 220 Alien Tech Used (0) 0 Bonus (297) 297 TOTAL SCORE: 10142 Bonus ------- High Alert Combat Kills 243 Follower Combat Kills 54 Cogmind --------- Core Integrity 0/1150 Matter 107/300 Energy 92/100 System Corruption 0% Temperature Cool (11) Movement Flying (109) Ox1 Location -4/Upper Caves Parts ------- > --- POWER (2) -------- (None) > --- PROPULSION (5) --- Improved VTOL Module Xenon Bombardment Thruster > --- UTILITY (10) ----- Large Storage Unit Experimental Signal Interpreter > --- WEAPON (2) ------- (None) > --- INVENTORY (10) --- Nuclear Pulse Thruster Large Storage Unit Large Storage Unit Advanced Signal Interpreter Improved Terrain Scan Processor Improved ECM Suite Peak State ------------ > --- POWER ------------ F-cell Engine > --- PROPULSION ------- Improved VTOL Module Nuclear Pulse Thruster Nuclear Pulse Thruster Field Propulsion Drive > --- UTILITY ---------- Large Storage Unit Advanced Weight Redist. System Long-range Sensor Array Experimental Signal Interpreter Improved Transmission Jammer Improved Propulsion Shielding Improved Utility Shielding Improved Utility Shielding Hacking Suite Hacking Suite > --- WEAPON ----------- (None) > --- INVENTORY -------- Improved VTOL Module Xenon Bombardment Thruster Nuclear Pulse Thruster Nuclear Pulse Thruster Large Storage Unit Large Storage Unit Advanced Signal Interpreter Improved Terrain Scan Processor Improved ECM Suite [Rating: 62] Favorites ----------- Power Light Nuclear Core Engine Ion Engine Power Core Light Nuclear Core Propulsion Improved VTOL Module Treads Light Treads Wheel Wheel Flight Unit Improved VTOL Module Utility Large Storage Unit Device Advanced Heat Sink Storage Large Storage Unit Processor Improved Signal Interpreter Hackware Hacking Suite Protection Improved Propulsion Shielding Weapon Heavy Particle Cannon Energy Gun Improved EM Shotgun Energy Cannon Heavy Particle Cannon Ballistic Gun Heavy Assault Rifle Ballistic Cannon Light Cannon Launcher Advanced EMP Blaster Build | -11 -10 -9 -8 -7 -6 -6 -6 -5 -4 -4 ------- Run | Scr Mat Mat Mat Fac Fac Was Fac Fac Fac Upp Slots Evolved 12 | . . 2 2 2 2 . . 2 2 . Power 1 | . . . . . . . . . 1 . Propulsion 3 | . . . . 2 . . . . 1 . Utility 8 | . . 2 2 . 2 . . 2 . . Weapon . | . . . . . . . . . . . Parts Attached 108 | 7 2 22 38 12 7 1 9 6 1 3 Power 13 | 1 . 3 5 . 3 . 1 . . . Engine 7 | 1 . 3 1 . 1 . 1 . . . Core 6 | . . . 4 . 2 . . . . . Reactor . | . . . . . . . . . . . Propulsion 28 | 2 . 5 9 4 . . 3 2 . 3 Treads 10 | 1 . 2 7 . . . . . . . Leg . | . . . . . . . . . . . Wheel 4 | 1 . 3 . . . . . . . . Hover . | . . . . . . . . . . . Flight 14 | . . . 2 4 . . 3 2 . 3 Utility 45 | 2 2 5 13 8 4 1 5 4 1 . Device 19 | 1 . 4 3 5 1 1 2 1 1 . Storage 6 | 1 2 . 2 . . . . 1 . . Processor 4 | . . 1 2 . 1 . . . . . Hackware 4 | . . . . 2 1 . 1 . . . Protection 12 | . . . 6 1 1 . 2 2 . . Artifact . | . . . . . . . . . . . Weapon 22 | 2 . 9 11 . . . . . . . Energy Gun 11 | 2 . 6 3 . . . . . . . Energy Cannon 5 | . . . 5 . . . . . . . Ballistic Gun 2 | . . 2 . . . . . . . . Ballistic Cannon 1 | . . 1 . . . . . . . . Launcher 3 | . . . 3 . . . . . . . Special Weapon . | . . . . . . . . . . . Impact Weapon . | . . . . . . . . . . . Slashing Weapon . | . . . . . . . . . . . Piercing Weapon . | . . . . . . . . . . . Special Melee Weapon . | . . . . . . . . . . . Unidentified Prototypes 9 | . . 1 4 . 3 1 . . . . Parts Lost 46 | . . 13 13 . 2 . 1 3 9 5 Power 6 | . . 1 1 . . . 1 1 2 . Propulsion 11 | . . 4 2 . . . . . 3 2 Utility 16 | . . 1 4 . 2 . . 2 4 3 Weapon 13 | . . 7 6 . . . . . . . Highest Loss Streak 13 | . . 3 3 . 2 . 1 1 9 13 Average Slot Usage (%) 89 | . 100 90 95 83 83 69 76 85 68 17 Engine 5 | . 14 10 1 . 2 . 2 4 5 . Core 3 | . . . 7 7 3 6 3 . . . Treads 8 | . 14 8 13 . . . . . . . Wheel 5 | . 14 11 4 . . . . . . . Flight 5 | . . . . 29 26 23 21 23 18 6 Device 10 | . 3 9 14 7 12 6 13 12 8 . Storage 18 | . 24 22 23 8 6 6 6 5 5 5 Processor 6 | . . 7 7 7 6 6 6 5 5 5 Hackware 3 | . . . . 13 18 13 13 11 9 . Protection 3 | . . . 5 5 5 6 8 18 14 . Energy Gun 9 | . 28 13 7 . . . . . . . Energy Cannon 3 | . . . 10 . . . . . . . Ballistic Gun 1 | . . 5 . . . . . . . . Naked Turns . | . . . . . . . . . . . Heaviest Build 96 | 14 57 63 96 93 32 26 34 38 27 19 Greatest Support 40 | 20 16 16 40 33 33 27 36 40 31 13 Greatest Overweight (x) 10 | . 3 6 8 4 1 . 10 1 7 6 Average Overweight (x) 2 | . 2 4 3 . . . . . . 1 Largest Inventory Capacity 30 | 6 18 18 30 30 10 10 10 10 10 10 Average Capacity 16 | 5 15 18 21 11 10 10 10 10 10 10 Most Carried 30 | 3 17 18 30 30 10 10 10 10 9 9 Average Carried 15 | 2 9 17 20 11 9 10 9 8 9 7 Final Capacity 30 | 6 18 18 30 10 10 10 10 10 10 10 Final Carried 30 | 3 17 17 30 10 10 10 10 9 9 6 Class Distribution -------------------- 57% | Mutant 16% | Hauler-Mutant 13% | Hacker-Mutant 10% | Hacker-Sprinter 3% | Scavenger-Mutant Dominant Class ---------------- Mutant | -10/Materials Mutant | -9/Materials Mutant | -8/Materials Hacker-Sprinter | -7/Factory Hacker-Mutant | -6/Factory Hacker-Mutant | -6/Waste Hacker-Mutant | -6/Factory Hacker-Mutant | -5/Factory Hacker-Mutant | -4/Factory Mutant | -4/Upper Caves Resources | -11 -10 -9 -8 -7 -6 -6 -6 -5 -4 -4 ----------- Run | Scr Mat Mat Mat Fac Fac Was Fac Fac Fac Upp Matter Collected 1240 | 260 30 450 310 99 91 . . . . . Remotely . | . . . . . . . . . . . Salvage Created 5252 | 112 453 2036 2651 . . . . . . . Parts 296 | 12 35 115 134 . . . . . . . Haulers Intercepted 10 | . 1 4 5 . . . . . . . Recyclers Shooed . | . . . . . . . . . . . Parts Field Recycled . | . . . . . . . . . . . Retrieved Matter . | . . . . . . . . . . . Parts Self-Destructed 6 | . . . . . . . . . . 6 Prevented 3 | . . . . . . . . . . 3 Kills | -11 -10 -9 -8 -7 -6 -6 -6 -5 -4 -4 ------- Run | Scr Mat Mat Mat Fac Fac Was Fac Fac Fac Upp Combat Hostiles Destroyed 98 | . 10 39 49 . . . . . . . Guns 51 | . 9 32 10 . . . . . . . Cannons 36 | . . 2 34 . . . . . . . AOE 8 | . 1 3 4 . . . . . . . Classes Destroyed 12 | 2 4 4 2 . . . . . . . Worker 3 | . 1 1 1 . . . . . . . Builder 7 | . . 3 4 . . . . . . . Tunneler 2 | 2 . . . . . . . . . . Hauler 10 | . 1 4 5 . . . . . . . Recycler 1 | 1 . . . . . . . . . . Operator 3 | . . 3 . . . . . . . . Watcher 1 | . . . 1 . . . . . . . Swarmer 16 | . 3 7 6 . . . . . . . Grunt 56 | . 7 20 29 . . . . . . . Brawler 5 | . . 2 3 . . . . . . . Sentry 19 | . . 10 9 . . . . . . . Hunter 2 | . . . 2 . . . . . . . Best Kill Streak 7 | 3 3 5 7 . . . . . . . Combat Bots Only 6 | . 3 5 6 . . . . . . . Max Kills in Single Turn 3 | 1 1 3 3 . . . . . . . Gunslinging . | . . . . . . . . . . . Exploded 3 | . 1 1 3 . . . . . . . Melee . | . . . . . . . . . . . Uniques/NPCs Destroyed . | . . . . . . . . . . . Combat | -11 -10 -9 -8 -7 -6 -6 -6 -5 -4 -4 -------- Run | Scr Mat Mat Mat Fac Fac Was Fac Fac Fac Upp Damage Taken 7719 | . 286 1605 2010 84 355 . 898 432 1141 908 Core 2431 | . 65 284 214 18 154 . 394 145 565 592 Absorbed by Shields 46 | . . . . 12 . . 34 . . . Core Remaining (%) 68 | 100 74 29 61 97 . . 35 85 . . Volleys Fired 260 | 8 27 107 118 . . . . . . . Largest 2 | 2 2 2 2 . . . . . . . Hottest 150 | 90 90 90 150 . . . . . . . Shots Fired 502 | 16 54 199 233 . . . . . . . Gun 312 | 16 54 182 60 . . . . . . . Cannon 182 | . . 17 165 . . . . . . . Launcher 8 | . . . 8 . . . . . . . Special . | . . . . . . . . . . . Kinetic 86 | . . 86 . . . . . . . . Thermal 241 | 8 27 24 182 . . . . . . . Explosive 4 | . . . 4 . . . . . . . Electromagnetic 171 | 8 27 89 47 . . . . . . . Robot Hit Streak 37 | 3 19 31 37 . . . . . . . Robot Miss Streak 3 | 1 1 3 2 . . . . . . . Penetration Max . | . . . . . . . . . . . Secondary Targets 1 | . . . 1 . . . . . . . Max Gunslinging Chain 1 | . . . 1 . . . . . . . Shots Hit Robots 396 | 5 45 164 182 . . . . . . . Core Hits 217 | 4 22 80 106 . 2 . . 3 . . Critical Hits 6 | . . 2 4 . . . . . . . Critical Kills 1 | . . . 1 . . . . . . . Critical Parts Destroyed 3 | . . . 3 . . . . . . . Melee Attacks . | . . . . . . . . . . . Impact . | . . . . . . . . . . . Slashing . | . . . . . . . . . . . Piercing . | . . . . . . . . . . . Sneak Attacks . | . . . . . . . . . . . Combat Hostiles . | . . . . . . . . . . . Follow-up Attacks . | . . . . . . . . . . . Damage Inflicted 8878 | 63 567 3096 5122 . 11 . . 19 . . Guns 3953 | 63 522 2424 944 . . . . . . . Cannons 3360 | . . 181 3179 . . . . . . . Explosions 1525 | . 45 491 989 . . . . . . . Melee . | . . . . . . . . . . . Ramming 40 | . . . 10 . 11 . . 19 . . Kinetic 976 | . . 976 . . . . . . . . Thermal 4736 | 38 267 686 3745 . . . . . . . Explosive 586 | . . 114 472 . . . . . . . Electromagnetic 2540 | 25 300 1320 895 . . . . . . . Impact . | . . . . . . . . . . . Slashing . | . . . . . . . . . . . Piercing . | . . . . . . . . . . . Highest Corruption 13 | . . . . . 2 8 13 . . . Average Corruption 6 | . . . . . 2 4 9 . . . Corruption Purged . | . . . . . . . . . . . Effects 24 | . . . . . 2 1 21 . . . Message Errors 10 | . . . . . 2 1 7 . . . Matter Fused 4 | . . . . . . . 4 . . . Energy Discharges 2 | . . . . . . . 2 . . . Data Loss (minor) 2 | . . . . . . . 2 . . . Data Loss (major) 2 | . . . . . . . 2 . . . Misdirections 4 | . . . . . . . 4 . . . Overload Shots . | . . . . . . . . . . . Overflow Damage 98 | . . 34 64 . . . . . . . Projectiles 20 | . . . 20 . . . . . . . Explosions 78 | . . 34 44 . . . . . . . Melee . | . . . . . . . . . . . Knockbacks 2 | . . 2 . . . . . . . . Impact . | . . . . . . . . . . . Kinetic 1 | . . 1 . . . . . . . . Secondary 1 | . . 1 . . . . . . . . Self-Inflicted Damage 386 | . 44 189 139 . 5 . . 9 . . Shots 11 | . 1 6 4 . . . . . . . Rammed 7 | . . . 2 . 2 . . 3 . . Targets Rammed 7 | . . . 2 . 2 . . 3 . . Kicked . | . . . . . . . . . . . Crushed . | . . . . . . . . . . . Highest Temperature 286 | 180 228 113 286 5 . . . . 21 2 Average Temperature 68 | 79 80 26 77 3 . . . . 10 2 Received Heat Transfer 2659 | . 150 753 1008 54 9 . 94 189 168 234 Siege Activations . | . . . . . . . . . . . Robots Corrupted 5 | . . 3 2 . . . . . . . Combat Hostiles 3 | . . 2 1 . . . . . . . Parts Fried 13 | . 1 6 6 . . . . . . . Impact Corruptions . | . . . . . . . . . . . Robots Melted . | . . . . . . . . . . . Combat Hostiles . | . . . . . . . . . . . Parts Melted 9 | . . 3 6 . . . . . . . Heat Transferred 7685 | 111 666 1351 5557 . . . . . . . Parts Sabotaged . | . . . . . . . . . . . Parts Stolen . | . . . . . . . . . . . Parts Stripped . | . . . . . . . . . . . Power Chain Reactions 13 | . 1 8 4 . . . . . . . Missiles Intercepted . | . . . . . . . . . . . Alert | -11 -10 -9 -8 -7 -6 -6 -6 -5 -4 -4 ------- Run | Scr Mat Mat Mat Fac Fac Was Fac Fac Fac Upp Peak Influence 712 | 15 177 310 712 85 31 33 28 90 44 . Average Influence 177 | 3 92 107 351 19 6 13 20 58 26 . Maximum Alert Level 3 | . . 1 3 . . . . . . . Low Security (%) 65 | 100 100 84 20 100 100 100 100 100 100 . Level 1 15 | . . 15 29 . . . . . . . Level 2 18 | . . . 49 . . . . . . . Level 3 . | . . . . . . . . . . . Level 4 . | . . . . . . . . . . . Level 5 . | . . . . . . . . . . . High Security . | . . . . . . . . . . . Max Security . | . . . . . . . . . . . Squads Dispatched 14 | . 1 3 7 1 1 . . . 1 . Investigation 4 | . 1 . 1 1 . . . . 1 . Extermination . | . . . . . . . . . . . Reinforcement 8 | . . 3 4 . 1 . . . . . Assault 1 | . . . 1 . . . . . . . Garrison 1 | . . . 1 . . . . . . . Intercept . | . . . . . . . . . . . Construction Impeded 1 | . . . 1 . . . . . . . Haulers Reinforced . | . . . . . . . . . . . Stealth | -11 -10 -9 -8 -7 -6 -6 -6 -5 -4 -4 --------- Run | Scr Mat Mat Mat Fac Fac Was Fac Fac Fac Upp Distress Signals 10 | . 1 1 5 1 . . 1 1 . . Communications Jammed . | . . . . . . . . . . . Distress Signals . | . . . . . . . . . . . Times Spotted 259 | . 17 69 79 10 14 4 10 27 16 13 Peak Tracking Total 14 | . 4 5 7 4 7 5 6 13 14 9 Tactical Retreats 28 | . . 7 5 3 1 . 3 4 1 4 Traps | -11 -10 -9 -8 -7 -6 -6 -6 -5 -4 -4 ------- Run | Scr Mat Mat Mat Fac Fac Was Fac Fac Fac Upp Traps Triggered 9 | . 1 1 1 3 1 . 1 1 . . Indirectly . | . . . . . . . . . . . Trap Hack Attempts . | . . . . . . . . . . . Triggered . | . . . . . . . . . . . Disarmed . | . . . . . . . . . . . Reprogrammed . | . . . . . . . . . . . Reused . | . . . . . . . . . . . Traps Extracted . | . . . . . . . . . . . Installed . | . . . . . . . . . . . Triggered 3 | . . 1 . . . . . . . 2 Machines | -11 -10 -9 -8 -7 -6 -6 -6 -5 -4 -4 ---------- Run | Scr Mat Mat Mat Fac Fac Was Fac Fac Fac Upp Machines Disabled 7 | . . 5 2 . . . . . . . Max in Single Turn 1 | . . 1 1 . . . . . . . Garrison Access 5 | . . . 1 1 2 . 1 . . . Machines Sabotaged . | . . . . . . . . . . . Garrisons Compromised . | . . . . . . . . . . . Overloaded Fab Kills . | . . . . . . . . . . . Fab Network Shutdowns . | . . . . . . . . . . . Hacking | -11 -10 -9 -8 -7 -6 -6 -6 -5 -4 -4 --------- Run | Scr Mat Mat Mat Fac Fac Was Fac Fac Fac Upp Machines Accessed 42 | . 5 9 8 6 5 . 5 2 1 1 Terminals 27 | . 5 7 5 4 2 . 2 1 . 1 Fabricators 3 | . . . . 1 1 . 1 . . . Repair Stations 4 | . . 1 2 . . . . . 1 . Recycling Units . | . . . . . . . . . . . Scanalyzers 4 | . . 1 1 . . . 1 1 . . Garrison Access 4 | . . . . 1 2 . 1 . . . Total Hacks 109 | . 9 31 20 12 9 . 17 6 4 1 Successful 78 | . 6 23 14 6 5 . 15 5 3 1 Failed 31 | . 3 8 6 6 4 . 2 1 1 . Catastrophic 6 | . . 1 2 2 1 . . . . . Database Lockouts . | . . . . . . . . . . . Manual 39 | . 3 13 10 7 2 . 2 2 . . Terminals 60 | . 9 20 11 9 4 . 2 4 . 1 Fabricators 6 | . . . . 2 2 . 2 . . . Repair Stations 12 | . . 4 4 . . . . . 4 . Recycling Units . | . . . . . . . . . . . Scanalyzers 26 | . . 7 5 . . . 12 2 . . Garrison Access 5 | . . . . 1 3 . 1 . . . Terminal Hacks 28 | . 5 10 5 3 1 . . 3 . 1 Record 1 | . . . . . . . . . . 1 Part Schematic 2 | . 1 1 . . . . . . . . Prototype ID Bank 1 | . 1 . . . . . . . . . Level Access Points 3 | . . . . 1 1 . . 1 . . Branch Access Points 3 | . 1 1 1 . . . . . . . Terminal Index 1 | . . 1 . . . . . . . . Repair Station Index 1 | . . . . . . . . 1 . . Scanalyzer Index 1 | . . . . . . . . 1 . . Alert Level 2 | . . 1 1 . . . . . . . Unreport Threat 8 | . 1 4 2 1 . . . . . . Surveillance Status 1 | . . 1 . . . . . . . . Recall Reinforcements 1 | . . . 1 . . . . . . . Hauler Manifests 2 | . 1 . . 1 . . . . . . Registered Prototypes 1 | . . 1 . . . . . . . . Fabricator Hacks 6 | . . . . 2 2 . 2 . . . Load Schematic 3 | . . . . 1 1 . 1 . . . Build 3 | . . . . 1 1 . 1 . . . Repair Station Hacks 11 | . . 4 4 . . . . . 3 . Scan Component 5 | . . 2 2 . . . . . 1 . Repair 5 | . . 2 2 . . . . . 1 . Refit 1 | . . . . . . . . . 1 . Recycling Unit Hacks . | . . . . . . . . . . . Scanalyzer 26 | . . 7 5 . . . 12 2 . . Insert Component 12 | . . 3 2 . . . 6 1 . . Analyze 14 | . . 4 3 . . . 6 1 . . Garrison Access Hacks 4 | . . . . 1 2 . 1 . . . Seal Access 4 | . . . . 1 2 . 1 . . . Unauthorized Hacks 3 | . 1 2 . . . . . . . . Terminals 3 | . 1 2 . . . . . . . . Track 3 | . 1 2 . . . . . . . . Fabricators . | . . . . . . . . . . . Repair Stations . | . . . . . . . . . . . Recycling Units . | . . . . . . . . . . . Scanalyzers . | . . . . . . . . . . . Garrison Access . | . . . . . . . . . . . Data Cores Recovered 3 | . . 2 . 1 . . . . . . Used 1 | . . 1 . . . . . . . . Hacking Detections 33 | . 4 8 6 4 4 . 3 2 1 1 Full Trace Events 3 | . . 1 1 . . . . . 1 . Feedback Events . | . . . . . . . . . . . Feedback Blocked . | . . . . . . . . . . . Robot Schematics Acquired . | . . . . . . . . . . . Robots Built . | . . . . . . . . . . . Matter . | . . . . . . . . . . . Time . | . . . . . . . . . . . Total Robot Build Rating . | . . . . . . . . . . . Part Schematics Acquired 13 | . 1 4 2 . . . 5 1 . . Parts Built 3 | . . . . 1 1 . 1 . . . Matter 438 | . . . . 146 146 . 146 . . . Time 145 | . . . . 36 73 . 36 . . . Total Part Build Rating 9 | . . . . 3 3 . 3 . . . Parts Repaired 5 | . . 2 2 . . . . . 1 . Time 171 | . . 70 57 . . . . . 44 . Parts Recycled . | . . . . . . . . . . . Recycled Matter . | . . . . . . . . . . . Retrieved Matter . | . . . . . . . . . . . Retrieved Components . | . . . . . . . . . . . Parts Scanalyzed 12 | . . 3 2 . . . 6 1 . . Part Schematics Acquired 11 | . . 3 2 . . . 5 1 . . Parts Damaged 1 | . . . . . . . 1 . . . Bothacking | -11 -10 -9 -8 -7 -6 -6 -6 -5 -4 -4 ------------ Run | Scr Mat Mat Mat Fac Fac Was Fac Fac Fac Upp Used RIF Installer . | . . . . . . . . . . . Robots Hacked . | . . . . . . . . . . . Non-combat . | . . . . . . . . . . . Combat . | . . . . . . . . . . . Robot Hacks Applied . | . . . . . . . . . . . Relay Couplers Released 2 | . . . 2 . . . . . . . Machine Destruction 2 | . . . 2 . . . . . . . Robots Rewired . | . . . . . . . . . . . Allies Hacked . | . . . . . . . . . . . Hacks Repelled . | . . . . . . . . . . . Allies | -11 -10 -9 -8 -7 -6 -6 -6 -5 -4 -4 -------- Run | Scr Mat Mat Mat Fac Fac Was Fac Fac Fac Upp Total Allies 4 | . . . . 3 . . . . . 1 Largest Group 3 | . . . . 3 . . . . . 1 Highest-Rated Group 180 | . . . . 93 . . . . . 180 Highest-Rated Ally 180 | . . . . 31 . . . . . 180 Total Orders 2 | . . . . . . . 2 . . . ROAM 1 | . . . . . . . 1 . . . EXPLORE 1 | . . . . . . . 1 . . . Ally Attacks 22 | . . . . 15 . . . . . 7 Total Damage 414 | . . . . 190 . . . . . 224 Kills 3 | . . . . 2 . . . . . 1 Allies Corrupted . | . . . . . . . . . . . Allies Melted . | . . . . . . . . . . . Intel | -11 -10 -9 -8 -7 -6 -6 -6 -5 -4 -4 ------- Run | Scr Mat Mat Mat Fac Fac Was Fac Fac Fac Upp Robot Analysis Total . | . . . . . . . . . . . Derelict Logs Recovered 1 | . . . . . . . . . . 1 Drone Launches 2 | . . . . . . . 2 . . . Drone Recoveries . | . . . . . . . . . . . Exploration | -11 -10 -9 -8 -7 -6 -6 -6 -5 -4 -4 ------------- Run | Scr Mat Mat Mat Fac Fac Was Fac Fac Fac Upp Turns Passed 8593 | 92 819 2343 3207 541 541 24 476 247 164 139 Spaces Moved 5564 | 55 573 1306 1270 734 554 75 381 412 106 98 Core 17 | 3 . . . . . . 2 . 3 9 Treads 907 | 2 . . 900 5 . . . . . . Legs . | . . . . . . . . . . . Wheels 2299 | 50 573 1306 370 . . . . . . . Hover . | . . . . . . . . . . . Flight 2341 | . . . . 729 554 75 379 412 103 89 Fastest Speed 26 | 50 100 130 140 26 26 29 27 28 29 109 Average Speed 111 | 99 121 132 191 32 69 29 54 43 98 138 Slowest Speed 550 | 160 130 140 250 250 105 29 550 114 400 350 Overloaded Moves . | . . . . . . . . . . . Propulsion Burnouts . | . . . . . . . . . . . Robots Hopped 20 | . . . . 8 4 . 1 4 3 . Cave-ins Triggered . | . . . . . . . . . . . Exploration Rate (%) 43 | 5 91 96 96 25 21 74 14 19 5 27 Regions Visited 10 Branch Regions 1 Pre-discovered Areas . | . . . . . . . . . . . Known Exits Taken 6 | . . 1 1 1 . . 1 1 1 . Unknown Exits Taken 2 | 1 1 . . . . . . . . . Scrap Searched . | . . . . . . . . . . . Spaces Dug . | . . . . . . . . . . . Terrain Destroyed 119 | . 4 50 65 . . . . . . . Melee . | . . . . . . . . . . . Projectile 29 | . . . 29 . . . . . . . AOE 90 | . 4 50 36 . . . . . . . Actions | -11 -10 -9 -8 -7 -6 -6 -6 -5 -4 -4 --------- Run | Scr Mat Mat Mat Fac Fac Was Fac Fac Fac Upp Total 7451 | 72 639 1718 1813 1035 705 77 650 476 165 101 Wait 1328 | . 22 243 310 256 134 . 243 60 60 . Move 5517 | 54 572 1305 1269 717 546 74 378 404 100 98 Hop 18 | . . . . 8 4 . 1 3 2 . Pick Up 102 | 3 14 25 43 8 4 . 5 . . . Fast Attach 45 | 7 2 6 16 3 6 1 3 . 1 . Attach 43 | . . 13 12 7 1 . 4 3 . 3 Detach 1 | . . . 1 . . . . . . . Swap 20 | . . 3 10 2 . . 2 3 . . Drop 85 | . 2 16 32 17 8 2 6 . 2 . Fire 260 | 8 27 107 118 . . . . . . . Melee . | . . . . . . . . . . . Ram 5 | . . . . . 2 . . 3 . . Kick . | . . . . . . . . . . . Crush 2 | . . . 2 . . . . . . . Escape Stasis 25 | . . . . 17 . . 8 . . . Rewire . | . . . . . . . . . . . Trap . | . . . . . . . . . . . Miscellaneous . | . . . . . . . . . . . Route ------- -11/Scrapyard -10/Materials (discovered 5 exits: *Mat x3 / *Min x2) -9/Materials (discovered 4 exits: *Mat x3 / *Min) -8/Materials (discovered 3 exits: *Fac x3) -7/Factory (discovered 6 exits: *Fac x4 / *Low x2) -6/Factory (discovered 4 exits: Fac x4) -6/Waste -6/Factory -5/Factory (discovered 4 exits: *Fac x4) -4/Factory -4/Upper Caves (discovered 1 exit: [*Res]) History --------- Turn | Location | Event 36 | -11/Scrapyard | Discovered new exit (range 16) 93 | -11/Scrapyard | Entered Materials 194 | -10/Materials | Discovered new exit (range 7) 319 | -10/Materials | Build established: Mutant 367 | -10/Materials | Discovered new exit (range 11) 572 | -10/Materials | Identified exit to Mines 735 | -10/Materials | Discovered new exit (range 14) 885 | -10/Materials | Discovered new exit (range 7) 912 | -10/Materials | Entered another Materials area 912 | -9/Materials | Evolved 2 slots: Utility x2 1685 | -9/Materials | Discovered new exit (range 4) 1730 | -9/Materials | Identified exit to Materials 1826 | -9/Materials | Repaired Imp. Ion Engine 1865 | -9/Materials | Repaired Imp. Heat Sink 2000 | -9/Materials | Identified exit to Mines 2004 | -9/Materials | Core integrity fell below 50% 2230 | -9/Materials | Discovered exit to Materials (range 16) 2858 | -9/Materials | Lost 3 parts (1p1n1w) 3079 | -9/Materials | Discovered exit to Materials (range 15) 3255 | -9/Materials | Entered another Materials area 3255 | -8/Materials | Evolved 2 slots: Utility x2 3928 | -8/Materials | Garrison activated, responded to threat 4075 | -8/Materials | Repaired Lgt. Nuclear Core 4445 | -8/Materials | Discovered new exit (range 15) 5142 | -8/Materials | Discovered new exit (range 5) 5151 | -8/Materials | Identified exit to Factory 5384 | -8/Materials | Build established: Hauler-Mutant 5944 | -8/Materials | Lost 3 parts (1p1u1w) 6225 | -8/Materials | Discovered exit to Factory (range 16) 6318 | -8/Materials | Repaired Arm. Treads 6462 | -8/Materials | Entered Factory 6462 | -7/Factory | Evolved 2 slots: Propulsion x2 6574 | -7/Factory | Identified exit to Factory 6668 | -7/Factory | Discovered new exit (range 10) 6697 | -7/Factory | Identified exit to Lower Caves 6702 | -7/Factory | Allied Derelicts emerged from ambush trap array 6757 | -7/Factory | Discovered exit to Lower Caves (range 11) 6816 | -7/Factory | Fabricated Hacking Suite? 6951 | -7/Factory | Build established: Hacker-Sprinter 7003 | -7/Factory | Entered another Factory area 7003 | -6/Factory | Evolved 2 slots: Utility x2 7136 | -6/Factory | Fabricated Hacking Suite (x1) 7421 | -6/Factory | Build established: Hacker-Mutant 7438 | -6/Factory | Identified exit to Factory 7514 | -6/Factory | Spotted B-75 Beast 7530 | -6/Factory | Found Prototype Processor 7530 | -6/Factory | Identified Exp. Signal Interpreter 7544 | -6/Factory | Sucked down chute 7544 | -6/Factory | Entered Waste 7547 | -6/Waste | Spotted C-40 Crusher 7550 | -6/Waste | Found Prototype Device 7550 | -6/Waste | Identified Exp. ECM Suite 7554 | -6/Waste | Spotted C-40 Crusher 7556 | -6/Waste | Spotted C-40 Crusher 7559 | -6/Waste | EMP discharged 7561 | -6/Waste | Spotted C-40 Crusher 7561 | -6/Waste | Spotted C-40 Crusher 7564 | -6/Waste | Spotted C-40 Crusher 7566 | -6/Waste | Discovered new exit (range 10) 7568 | -6/Waste | Identified exit to Factory 7568 | -6/Waste | Entered Factory 7640 | -6/Factory | Fabricated Hacking Suite (x1) 7891 | -6/Factory | System corruption reached 10% 7901 | -6/Factory | Core integrity fell below 50% 8040 | -6/Factory | Discovered exit to Factory (range 14) 8044 | -6/Factory | Entered another Factory area 8044 | -5/Factory | Evolved 2 slots: Utility x2 8059 | -5/Factory | Identified exit to Factory 8291 | -5/Factory | Entered another Factory area 8291 | -4/Factory | Evolved 2 slots: Power x1, Propulsion x1 8392 | -4/Factory | Repaired Lrn. Sensor Array 8432 | -4/Factory | Discovered new exit (range 5) 8451 | -4/Factory | Identified exit to Upper Caves 8455 | -4/Factory | Entered Upper Caves 8457 | -4/Upper Caves | Core integrity fell below 50% 8473 | -4/Upper Caves | 7V-RTL showed up to help 8475 | -4/Upper Caves | 7V-RTL revealed a hidden path 8494 | -4/Upper Caves | Lost 13 parts (2p4n7u) 8495 | -4/Upper Caves | Core integrity fell below 20% 8537 | -4/Upper Caves | Learned Research stockpile data 8593 | -4/Upper Caves | Attracted the attention of an 0b10 checkpoint 8594 | -4/Upper Caves | Destroyed by Y-64 Sentinel with Wave Gun Last Messages --------------- 7V-RTL: "There's a hidden path right here." 08477_ 7V-RTL: "Gotta help the little guy..." 08477_ Slug penetrates G-73 Enforcer. 08479_ S-27 Virus destroyed. 08480_ Slug penetrates G-73 Enforcer. 08480_ Slug penetrates Wall. 08480_ G-73 Enforcer destroyed. 08483_ Slug penetrates G-67 Veteran. 08483_ Slug penetrates Wall. 08488_ Slug penetrates G-67 Veteran. 08489_ Autogun fries itself beyond repair. 08490_ YV-TWW(S) destroyed. 08503_ Nuclear Pulse Thruster destroyed. 08530_ Connecting with Terminal... >>Query(Status Report 013H) UNIDENTI-- 08537_ Acquired derelict log, extracted data. Data stored: Research stockpile data. 08543_ TR-LKJ(k) breaks down the debris. 08593_ Y-64 Sentinel: "INTERCEPTING UNREGISTERED DERELICT." Map ----- +----------------------------------------------------+ | ?????????????????????????????????????????????????? | | ?????????????????????????????????????????????????? | | ?????????????????????????????????????????????????? | | ?????????????????????????????????????????????????? | | ?????????????????????????????????????????????????? | | ?????????????????????????????????????????????????? | | ?????????????????????????????????????????????????? | | ?????????????????????????????????????????????????? | | ?????????????????????????????????????????????????? | | ?????????????????????????????????????????????????? | | ?????????????????????????????????????????????????? | | ?????????????????????????????????????????????????? | | ?????????????????????????????????????????????????? | | ???????????????? #??????????????????????????????? | | ???????????????# ??????????????????????????????? | | ???????????????? ?????????????????????????????? | | ??????????????### ##???????????????????????????? | | ??????????????# #??????????????????????????? | | ??????????????# #?????????????????????????? | | ???????????? # #????????????????????????? | | ???????????? g ##??????????????????????? | | ??????????? Y ##???????####??????????? | | ???????????? #??????# #??????????? | | ??????????????# #????## ???????????? | | ????????????????? s ##### ?????????????? | | ??????????????????????# @ ## #???????????????? | | ??????????????????????#### #???????????????? | | ?????????????????????????## ##???????????????? | | ??????????????????????????# ##????????????????? | | ??????????????????????????# #?????????????????? | | ??????????????????????????# #?????????????????? | | ??????????????????????????# ##?????????????????? | | ??????????????????????????# #??????????????????? | | ??????????????????????##?## #??????????????????? | | ??????????????????????# ## ##??????????????????? | | ??????????????????????# ##???????????????????? | | ???????????### ??????## #????????????????????? | | ??????????? ??????### #????????????????????? | | ?????????? ??????# #????????????????????? | | ?????????? ?????# #????????????????????? | | ????????? ##### ##????????????????????? | | ????????? #######??????????????? | | ????????? #??????????????? | | ????????? ## ####### #??????????????? | | ??????????# ???## # #????# #??????????????? | | ??????????? ???????# ###### #??????????????? | | ???????????? ??????????## ##?????????????? | | ????????????????????????# ###### ###???????????? | | ????????????????????????# ?????# ##??????????? | | ????????????????????????# #????# #??????????? | +----------------------------------------------------+ Best States ------------- Heat Dissipation 60 Energy Generation 19 Energy Capacity 500 Matter Stores 300 Matter Capacity 300 Sight Range 16 Robot Scan Range 20 Terrain Scan Range 16 Terrain Scan Density 10 Additional Mass Support 9 Armor Coverage 600 Resistance: KI 20 Resistance: TH 20 Resistance: EX 20 Resistance: EM 20 Resistance: I 20 Resistance: S 20 Resistance: P 20 Propulsion Shielding 66 Utility Shielding 66 Evasion (%) 64 Targeting Accuracy 8 Recoil Reduction 2 Offensive Hacking 40 Item Schematics ----------------- Hcp. Storage Unit | -10/Materials | Hacked Hrd. Light Armor Plating | -9/Materials | Hacked Hacking Suite | -9/Materials | Scanalyzed Imp. EM Shotgun | -9/Materials | Scanalyzed Hvy. Particle Cannon | -9/Materials | Scanalyzed Coolant Injector | -8/Materials | Scanalyzed Imp. Light Armor Plating | -8/Materials | Scanalyzed Nuclear Pulse Thruster | -6/Factory | Scanalyzed Imp. Propulsion Shielding | -6/Factory | Scanalyzed Enh. Nuclear Core | -6/Factory | Scanalyzed Lrg. Storage Unit | -6/Factory | Scanalyzed Imp. Transmission Jammer | -6/Factory | Scanalyzed Imp. VTOL Module | -5/Factory | Scanalyzed Robot Schematics ------------------ None Fabricated ------------ Hacking Suite | x1 | -7/Factory Hacking Suite | x1 | -6/Factory Hacking Suite | x1 | -6/Factory Alien Tech Used ----------------- None Achievements -------------- None Challenges ------------ None Game ------ Seed ReactiveMolecularArmor Manual? 0 Play Time 02:25:55 Cumulative 29.0 hours Start 2020.04.21 @ 22:49:07 End 2020.04.23 @ 13:42:22 Sessions 2 Manual Loads 0 Difficulty Adventurer Special Mode None Game No. 9 Rogue 2 Adventurer 7 Explorer 0 Win Type - Total 0 Types 0/0/0/0/0/0/0 Lore% 15 Gallery% 27 Achievement% 26 Wizard Run 0 Options --------- ASCII 0 Keyboard 0 Movement Numpad Keybinds 0 Fullscreen 1 Font 18/SmallcapsGlow Map View 76x50 Tactical HUD 1 Map Filters NONE Filters NONE Steam 0 RUN: a1f766ad-3e77-4c2d-8975-ad93253608d2